fUST/lending_fUST_20250131
["ID","MTS","AMOUNT","RATE_DAILY","PERIOD"]
[351020457,1738296645463,-190.757891,0.00016985,2]
[351020458,1738296645473,-190.757891,0.00016985,2]
[351020459,1738296645483,-190.757891,0.00016985,2]
[351020460,1738296645492,-190.757891,0.00016985,2]
[351020461,1738296645501,-190.757891,0.00016985,2]
[351020462,1738296645511,-190.757891,0.00016985,2]
[351020463,1738296645520,-190.757898,0.00016985,2]
[351020464,1738296645531,-446.900223,0.00016985,2]
[351020465,1738296645543,-446.900223,0.00016985,2]
[351020466,1738296645554,-446.900223,0.00016985,2]
[351020467,1738296645563,-446.900223,0.00016985,2]
[351020468,1738296645573,-446.900223,0.00016985,2]
[351020469,1738296645583,-446.900223,0.00016985,2]
[351020470,1738296645592,-446.900223,0.00016985,2]
[351020471,1738296645601,-446.900223,0.00016985,2]
[351020472,1738296645611,-446.900223,0.00016985,2]
[351020473,1738296645621,-446.900217,0.00016985,2]
[351020474,1738296645630,-480.978159,0.00016985,2]
[351020475,1738296645639,-480.978159,0.00016985,2]
[351020477,1738296645648,-480.978159,0.00016985,2]
[351020478,1738296645658,-480.978159,0.00016985,2]
[351020479,1738296645667,-480.978159,0.00016985,2]
[351020480,1738296645676,-480.978159,0.00016985,2]
[351020481,1738296645685,-480.978159,0.00016985,2]
[351020482,1738296645695,-480.978159,0.00016985,2]
[351020483,1738296645704,-480.978159,0.00016985,2]
[351020484,1738296645713,-480.978163,0.00016985,2]
[351020485,1738296645722,-500.0,0.00016986,2]
[351020486,1738296645732,-500.0,0.00016986,2]
[351020487,1738296645741,-685.94,0.00016986,2]
[351020488,1738296645751,-500.0,0.00016986,2]
[351020489,1738296645760,-500.0,0.00016986,2]
[351020490,1738296645770,-500.0,0.00017118,2]
[351020491,1738296645780,-500.0,0.00017118,2]
[351020492,1738296645790,-500.0,0.00017118,2]
[351020493,1738296645798,-500.0,0.00017118,2]
[351020494,1738296645811,-500.0,0.00017118,2]
[351020495,1738296645821,-500.0,0.00017118,2]
[351020496,1738296645830,-677.33,0.00017118,2]
[351020497,1738296645839,-500.0,0.00017118,2]
[351020498,1738296645848,-500.0,0.00017118,2]
[351020499,1738296645858,-500.0,0.00017118,2]
[351020500,1738296645867,-500.0,0.00017118,2]
[351020501,1738296645877,-500.0,0.00017118,2]
[351020502,1738296645886,-625.75,0.00017118,2]
[351020503,1738296645896,-500.0,0.00017118,2]
[351020505,1738296645905,-1484.8,0.00017118,2]
[351020506,1738296645914,-500.0,0.00017118,2]
[351020507,1738296645923,-500.0,0.00017118,2]
[351020508,1738296645934,-500.0,0.00017118,2]
[351020509,1738296645944,-500.0,0.00017118,2]
[351020510,1738296645954,-500.0,0.00017118,2]
[351020511,1738296645964,-859.31,0.00017118,2]
[351020512,1738296645974,-500.0,0.00017118,2]
[351020513,1738296645984,-500.0,0.00017118,2]
[351020514,1738296645994,-500.0,0.00017118,2]
[351020515,1738296646005,-770.71,0.00017118,2]
[351020516,1738296646015,-500.0,0.00017118,2]
[351020517,1738296646024,-500.0,0.00017118,2]
[351020518,1738296646034,-1518.04,0.00017118,2]
[351020519,1738296646045,-500.0,0.00017119,2]
[351020520,1738296646055,-234.93022984,0.00017119,2]
[351020521,1738296646064,-503.70003065,0.00017119,2]
[351020522,1738296646074,-500.0,0.00017119,2]
[351020523,1738296646084,-500.0,0.00017119,2]
[351020525,1738296646094,-500.0,0.00017119,2]
[351020526,1738296646104,-500.0,0.00017119,2]
[351020527,1738296646113,-500.0,0.00017119,2]
[351020528,1738296646123,-500.0,0.00017119,2]
[351020529,1738296646132,-500.0,0.00017119,2]
[351020530,1738296646142,-156.47322616,0.00017119,2]
[351020532,1738296646152,-500.0,0.00017119,2]
[351020534,1738296646163,-500.0,0.00017119,2]
[351020535,1738296646173,-500.0,0.00017119,2]
[351020536,1738296646184,-500.0,0.00017119,2]
[351020537,1738296646194,-500.0,0.00017119,2]
[351020538,1738296646203,-500.0,0.00017119,2]
[351020539,1738296646213,-500.0,0.00017119,2]
[351020540,1738296646222,-500.0,0.00017119,2]
[351020541,1738296646231,-500.0,0.00017119,2]
[351020542,1738296646240,-500.0,0.00017119,2]
[351020543,1738296646250,-500.0,0.00017119,2]
[351020544,1738296646259,-500.0,0.00017119,2]
[351020545,1738296646268,-500.0,0.00017119,2]
[351020546,1738296646278,-500.0,0.00017119,2]
[351020547,1738296646390,-500.0,0.00017119,2]
[351020548,1738296646400,-500.0,0.00017119,2]
[351020549,1738296646409,-500.0,0.00017119,2]
[351020550,1738296646419,-500.0,0.00017119,2]
[351020551,1738296646428,-231.67979924,0.00017119,2]
[351020552,1738296646437,-500.0,0.00017119,2]
[351020553,1738296646446,-500.0,0.00017119,2]
[351020554,1738296646455,-500.0,0.00017119,2]
[351020555,1738296646465,-500.0,0.00017119,2]
[351020556,1738296646474,-500.0,0.00017119,2]
[351020557,1738296646483,-500.0,0.00017119,2]
[351020558,1738296646491,-500.0,0.00017119,2]
[351020559,1738296646500,-200.0,0.00017119,2]
[351020560,1738296646510,-500.0,0.00017119,2]
[351020561,1738296646519,-500.0,0.00017119,2]
[351020562,1738296646528,-504.56818694,0.00017119,2]
[351020563,1738296646538,-500.0,0.00017119,2]
[351020564,1738296646548,-500.0,0.00017119,2]
[351020565,1738296646558,-500.0,0.00017119,2]
[351020566,1738296646570,-500.0,0.00017119,2]
[351020567,1738296646579,-500.0,0.00017119,2]
[351020568,1738296646588,-500.0,0.00017119,2]
[351020569,1738296646598,-500.0,0.00017119,2]
[351020570,1738296646607,-500.0,0.00017119,2]
[351020571,1738296646615,-500.0,0.00017119,2]
[351020572,1738296646626,-504.37823836,0.00017119,2]
[351020573,1738296646635,-500.0,0.00017119,2]
[351020574,1738296646645,-500.0,0.00017119,2]
[351020575,1738296646656,-500.0,0.00017119,2]
[351020576,1738296646665,-500.0,0.00017119,2]
[351020577,1738296646674,-500.0,0.00017119,2]
[351020578,1738296646683,-500.0,0.00017119,2]
[351020579,1738296646692,-290.67870584,0.00017119,2]
[351020580,1738296646702,-501.86742511,0.00017119,2]
[351020581,1738296646711,-502.0872496,0.00017119,2]
[351020582,1738296646719,-151.0,0.00017119,2]
[351020583,1738296646729,-506.85188493,0.00017119,2]
[351020584,1738296646737,-500.0,0.00017119,2]
[351020585,1738296646746,-471.16438,0.00017119,2]
[351020586,1738296646755,-500.0,0.00017119,2]
[351020587,1738296646764,-471.16438,0.00017119,2]
[351020588,1738296646773,-500.0,0.00017119,2]
[351020589,1738296646782,-500.0,0.00017119,2]
[351020590,1738296646791,-229.196096,0.00017119,2]
[351020591,1738296646801,-229.196096,0.00017119,2]
[351020592,1738296646809,-500.0,0.00017119,2]
[351020593,1738296646819,-500.0,0.00017119,2]
[351020594,1738296646828,-500.0,0.00017119,2]
[351020595,1738296646837,-500.0,0.00017119,2]
[351020596,1738296646846,-151.0,0.00017119,2]
[351020597,1738296646856,-500.0,0.00017119,2]
[351020598,1738296646866,-151.0,0.00017119,2]
[351020599,1738296646879,-500.0,0.00017119,2]
[351020600,1738296646888,-500.0,0.00017119,2]
[351020601,1738296646898,-500.0,0.00017119,2]
[351020602,1738296646907,-389.77329103,0.00017119,2]
[351020603,1738296646917,-151.0,0.00017119,2]
[351020604,1738296646927,-151.0,0.00017119,2]
[351020605,1738296646937,-504.53440022,0.00017119,2]
[351020606,1738296646947,-500.0,0.00017119,2]
[351020607,1738296646958,-336.560355,0.00017119,2]
[351020608,1738296646968,-500.0,0.00017119,2]
[351020609,1738296646978,-503.47630691,0.00017119,2]
[351020610,1738296646987,-336.560355,0.00017119,2]
[351020611,1738296646996,-500.0,0.00017119,2]
[351020612,1738296647005,-500.0,0.00017119,2]
[351020613,1738296647014,-500.0,0.00017119,2]
[351020614,1738296647023,-500.0,0.00017119,2]
[351020615,1738296647033,-462.93306707,0.00017119,2]
[351020616,1738296647042,-510.19986888,0.00017119,2]
[351020617,1738296647051,-500.0,0.00017119,2]
[351020618,1738296647060,-503.7039609,0.00017119,2]
[351020619,1738296647070,-500.0,0.00017119,2]
[351020620,1738296647079,-501.55217064,0.00017119,2]
[351020621,1738296647088,-500.0,0.00017119,2]
[351020622,1738296647097,-500.0,0.00017119,2]
[351020623,1738296647106,-500.0,0.00017119,2]
[351020624,1738296647116,-500.0,0.00017119,2]
[351020625,1738296647125,-500.0,0.00017119,2]
[351020626,1738296647134,-500.0,0.00017119,2]
[351020627,1738296647145,-500.0,0.00017119,2]
[351020628,1738296647154,-502.26367311,0.00017119,2]
[351020629,1738296647164,-500.0,0.00017119,2]
[351020630,1738296647173,-440.20228244,0.00017119,2]
[351020631,1738296647182,-500.0,0.00017119,2]
[351020632,1738296647192,-500.0,0.00017119,2]
[351020633,1738296647204,-500.0,0.00017119,2]
[351020634,1738296647213,-402.81729261,0.00017119,2]
[351020635,1738296647224,-500.0,0.00017119,2]
[351020636,1738296647236,-500.0,0.00017119,2]
[351020637,1738296647246,-500.0,0.00017119,2]
[351020638,1738296647256,-500.0,0.00017119,2]
[351020639,1738296647265,-554.33101471,0.00017119,2]
[351020640,1738296647275,-500.0,0.00017119,2]
[351020641,1738296647284,-500.0,0.00017119,2]
[351020642,1738296647294,-513.37359125,0.00017119,2]
[351020643,1738296647306,-500.0,0.00017119,2]
[351020644,1738296647315,-516.76355915,0.00017119,2]
[351020645,1738296647325,-500.0,0.00017119,2]
[351020646,1738296647334,-500.0,0.00017119,2]
[351020647,1738296647343,-500.0,0.00017119,2]
[351020648,1738296647353,-500.0,0.00017119,2]
[351020649,1738296647364,-500.0,0.00017119,2]
[351020650,1738296647375,-500.0,0.00017119,2]
[351020651,1738296647385,-500.0,0.00017119,2]
[351020652,1738296647394,-500.0,0.00017119,2]
[351020653,1738296647403,-503.70161828,0.00017119,2]
[351020654,1738296647412,-500.0,0.00017119,2]
[351020655,1738296647422,-500.0,0.00017119,2]
[351020656,1738296647431,-500.0,0.00017119,2]
[351020657,1738296647440,-500.0,0.00017119,2]
[351020658,1738296647449,-523.689876,0.00017119,2]
[351020659,1738296647459,-500.0,0.00017119,2]
[351020660,1738296647468,-500.0,0.00017119,2]
[351020661,1738296647478,-500.0,0.00017119,2]
[351020662,1738296647487,-503.96237932,0.00017119,2]
[351020663,1738296647497,-513.45187185,0.00017119,2]
[351020664,1738296647507,-500.0,0.00017119,2]
[351020665,1738296647516,-500.0,0.00017119,2]
[351020666,1738296647526,-500.0,0.00017119,2]
[351020667,1738296647536,-500.0,0.00017119,2]
[351020668,1738296647549,-500.0,0.00017119,2]
[351020669,1738296647559,-500.0,0.00017119,2]
[351020670,1738296647570,-505.28303151,0.00017119,2]
[351020671,1738296647579,-500.0,0.00017119,2]
[351020672,1738296647589,-500.0,0.00017119,2]
[351020673,1738296647599,-500.0,0.00017119,2]
[351020674,1738296647608,-508.92957364,0.00017119,2]
[351020675,1738296647619,-500.0,0.00017119,2]
[351020676,1738296647629,-500.0,0.00017119,2]
[351020677,1738296647638,-500.0,0.00017119,2]
[351020678,1738296647647,-500.0,0.00017119,2]
[351020679,1738296647656,-500.0,0.00017119,2]
[351020680,1738296647666,-500.0,0.00017119,2]
[351020681,1738296647675,-500.0,0.00017119,2]
[351020682,1738296647684,-2120.6,0.00017119,2]
[351020683,1738296647694,-505.24216518,0.00017119,2]
[351020684,1738296647703,-500.0,0.00017119,2]
[351020685,1738296647713,-500.0,0.00017119,2]
[351020686,1738296647722,-500.0,0.00017119,2]
[351020687,1738296647731,-500.0,0.00017119,2]
[351020688,1738296647741,-500.0,0.00017119,2]
[351020689,1738296647750,-500.0,0.00017119,2]
[351020690,1738296647759,-500.0,0.00017119,2]
[351020691,1738296647769,-500.0,0.00017119,2]
[351020692,1738296647778,-500.0,0.00017119,2]
[351020693,1738296647788,-500.0,0.00017119,2]
[351020694,1738296647797,-500.0,0.00017119,2]
[351020695,1738296647807,-500.0,0.00017119,2]
[351020696,1738296647816,-500.0,0.00017119,2]
[351020697,1738296647827,-500.0,0.00017119,2]
[351020698,1738296647837,-500.0,0.00017119,2]
[351020699,1738296647847,-500.0,0.00017119,2]
[351020700,1738296647857,-500.0,0.00017119,2]
[351020701,1738296647867,-513.58686845,0.00017119,2]
[351020702,1738296647875,-500.0,0.00017119,2]
[351020703,1738296647886,-500.0,0.00017119,2]
[351020704,1738296647895,-500.0,0.00017119,2]
[351020705,1738296647906,-500.0,0.00017119,2]
[351020706,1738296647915,-500.0,0.00017119,2]
[351020707,1738296647925,-505.92911704,0.00017119,2]
[351020708,1738296647935,-500.0,0.00017119,2]
[351020709,1738296647946,-500.0,0.00017119,2]
[351020710,1738296647956,-500.0,0.00017119,2]
[351020711,1738296647966,-500.0,0.00017119,2]
[351020712,1738296647975,-500.0,0.00017119,2]
[351020713,1738296647984,-500.0,0.00017119,2]
[351020714,1738296647993,-500.0,0.00017119,2]
[351020715,1738296648003,-500.0,0.00017119,2]
[351020716,1738296648013,-506.42217585,0.00017119,2]
[351020717,1738296648022,-503.92882149,0.00017119,2]
[351020718,1738296648031,-500.0,0.00017119,2]
[351020719,1738296648040,-503.32533486,0.00017119,2]
[351020720,1738296648050,-500.0,0.00017119,2]
[351020721,1738296648059,-500.0,0.00017119,2]
[351020722,1738296648069,-500.0,0.00017119,2]
[351020723,1738296648079,-506.3811406,0.00017119,2]
[351020724,1738296648089,-500.0,0.00017119,2]
[351020725,1738296648099,-500.0,0.00017119,2]
[351020726,1738296648109,-500.0,0.00017119,2]
[351020727,1738296648119,-500.0,0.00017119,2]
[351020728,1738296648129,-500.0,0.00017119,2]
[351020729,1738296648139,-500.0,0.00017119,2]
[351020730,1738296648149,-500.0,0.00017119,2]
[351020731,1738296648160,-500.0,0.00017119,2]
[351020732,1738296648169,-500.0,0.00017119,2]
[351020733,1738296648179,-232.278265,0.0001712,2]
[351020734,1738296648188,-232.278265,0.0001712,2]
[351020735,1738296648198,-261.936049,0.0001712,2]
[351020736,1738296648208,-151.0,0.0001712,2]
[351020737,1738296648217,-151.0,0.0001712,2]
[351020738,1738296648227,-471.16438,0.0001712,2]
[351020739,1738296648236,-471.16438,0.0001712,2]
[351020740,1738296648245,-229.196096,0.0001712,2]
[351020741,1738296648255,-229.196096,0.0001712,2]
[351020742,1738296648265,-151.0,0.0001712,2]
[351020743,1738296648274,-151.0,0.0001712,2]
[351020744,1738296648284,-1946.02,0.0001712,2]
[351020745,1738296648293,-336.560355,0.0001712,2]
[351020746,1738296648303,-336.560355,0.0001712,2]
[351020747,1738296648402,-500.0,0.0001712,2]
[351020748,1738296648412,-566.55,0.0001712,2]
[351020749,1738296648422,-500.0,0.0001712,2]
[351020750,1738296648431,-500.0,0.0001712,2]
[351020751,1738296648440,-500.0,0.0001712,2]
[351020752,1738296648450,-500.0,0.0001712,2]
[351020753,1738296648460,-500.0,0.0001712,2]
[351020754,1738296648470,-1512.06,0.0001712,2]
[351020755,1738296648479,-1430.14,0.0001712,2]
[351020756,1738296648489,-500.0,0.0001712,2]
[351020757,1738296648499,-500.0,0.0001712,2]
[351020758,1738296648508,-500.0,0.0001712,2]
[351020759,1738296648518,-500.0,0.00017121,2]
[351020760,1738296648528,-500.0,0.00017121,2]
[351020761,1738296648539,-500.0,0.00017121,2]
[351020762,1738296648552,-232.278265,0.00017121,2]
[351020763,1738296648562,-502.23166387,0.00017121,2]
[351020764,1738296648572,-232.278265,0.00017121,2]
[351020765,1738296648583,-500.0,0.00017121,2]
[351020766,1738296648592,-500.0,0.00017121,2]
[351020767,1738296648602,-506.17763387,0.00017121,2]
[351020768,1738296648611,-500.0,0.00017121,2]
[351020769,1738296648620,-500.0,0.00017121,2]
[351020770,1738296648630,-500.0,0.00017121,2]
[351020771,1738296648639,-500.0,0.00017121,2]
[351020772,1738296648648,-500.0,0.00017121,2]
[351020773,1738296648658,-500.0,0.00017121,2]
[351020774,1738296648667,-500.0,0.00017121,2]
[351020775,1738296648677,-500.0,0.00017121,2]
[351020776,1738296648686,-500.0,0.00017121,2]
[351020777,1738296648695,-509.51403526,0.00017121,2]
[351020778,1738296648704,-500.0,0.00017121,2]
[351020779,1738296648714,-500.0,0.00017121,2]
[351020780,1738296648724,-500.0,0.00017121,2]
[351020781,1738296648733,-261.936049,0.00017121,2]
[351020782,1738296648743,-500.0,0.00017121,2]
[351020783,1738296648753,-500.0,0.00017121,2]
[351020784,1738296648763,-500.0,0.00017121,2]
[351020785,1738296648772,-500.0,0.00017121,2]
[351020786,1738296648782,-500.0,0.00017121,2]
[351020787,1738296648792,-151.0,0.00017121,2]
[351020788,1738296648802,-500.0,0.00017121,2]
[351020789,1738296648812,-500.0,0.00017121,2]
[351020790,1738296648821,-506.43130944,0.00017121,2]
[351020791,1738296648831,-500.0,0.00017121,2]
[351020792,1738296648841,-512.70076817,0.00017121,2]
[351020793,1738296648851,-2466.711893,0.00017121,2]
[351020794,1738296648861,-2466.711893,0.00017121,2]
[351020795,1738296648871,-151.0,0.00017121,2]
[351020796,1738296648881,-151.0,0.00017121,2]
[351020797,1738296648891,-471.16438,0.00017121,2]
[351020798,1738296648900,-471.16438,0.00017121,2]
[351020799,1738296648910,-471.16438,0.00017121,2]
[351020800,1738296648919,-471.16438,0.00017121,2]
[351020801,1738296648928,-229.196096,0.00017121,2]
[351020802,1738296648938,-229.196096,0.00017121,2]
[351020803,1738296648947,-229.196096,0.00017121,2]
[351020804,1738296648957,-229.196101,0.00017121,2]
[351020805,1738296648966,-151.0,0.00017121,2]
[351020806,1738296648977,-151.0,0.00017121,2]
[351020807,1738296648986,-200.749219,0.00017121,2]
[351020808,1738296648996,-336.560355,0.00017121,2]
[351020809,1738296649005,-336.560355,0.00017121,2]
[351020810,1738296649015,-336.560355,0.00017121,2]
[351020811,1738296649024,-336.560359,0.00017121,2]
[351020812,1738296649034,-500.0,0.00017121,2]
[351020813,1738296649044,-500.0,0.00017121,2]
[351020814,1738296649053,-383.77,0.00017121,2]
[351020815,1738296649062,-1512.06,0.00017121,2]
[351020816,1738296649072,-500.0,0.00017121,2]
[351020817,1738296649082,-500.0,0.00017121,2]
[351020818,1738296649092,-502.54081061,0.00017121,2]
[351020819,1738296649101,-548.17334524,0.00017122,2]
[351020820,1738296649111,-169.73940659,0.00017122,2]
[351020821,1738296649121,-507.16305132,0.00017122,2]
[351020822,1738296649130,-500.0,0.00017122,2]
[351020823,1738296649142,-535.1241292,0.00017122,2]
[351020824,1738296649151,-501.08555996,0.00017122,2]
[351020825,1738296649161,-503.94921382,0.00017122,2]
[351020826,1738296649170,-502.07914321,0.00017122,2]
[351020827,1738296649179,-500.0,0.00017122,2]
[351020828,1738296649189,-503.14578407,0.00017122,2]
[351020829,1738296649198,-512.81726964,0.00017122,2]
[351020830,1738296649207,-579.40779878,0.00017122,2]
[351020831,1738296649217,-531.89969528,0.00017122,2]
[351020832,1738296649226,-501.12735252,0.00017122,2]
[351020833,1738296649236,-523.92510137,0.00017122,2]
[351020834,1738296649246,-502.22760959,0.00017122,2]
[351020835,1738296649255,-504.1692633,0.00017122,2]
[351020836,1738296649264,-504.16742725,0.00017122,2]
[351020837,1738296649275,-506.29611266,0.00017122,2]
[351020838,1738296649285,-504.34439184,0.00017122,2]
[351020839,1738296649295,-500.62886769,0.00017122,2]
[351020840,1738296649305,-501.6189812,0.00017122,2]
[351020841,1738296649314,-505.08902571,0.00017122,2]
[351020842,1738296649324,-505.41445445,0.00017122,2]
[351020843,1738296649335,-502.04145785,0.00017122,2]
[351020844,1738296649344,-503.6248226,0.00017122,2]
[351020845,1738296649354,-513.93161765,0.00017122,2]
[351020846,1738296649363,-503.5189988,0.00017122,2]
[351020847,1738296649373,-645.09024336,0.00017122,2]
[351020848,1738296649382,-501.57583184,0.00017122,2]
[351020849,1738296649392,-502.62631412,0.00017122,2]
[351020850,1738296649401,-504.56636609,0.00017122,2]
[351020851,1738296649411,-500.0,0.00017122,2]
[351020852,1738296649420,-500.0,0.00017122,2]
[351020853,1738296649430,-500.0,0.00017122,2]
[351020854,1738296649441,-501.68231034,0.00017122,2]
[351020855,1738296649450,-500.0,0.00017122,2]
[351020856,1738296649460,-504.14870105,0.00017122,2]
[351020857,1738296649470,-168.744507,0.00017122,2]
[351020858,1738296649479,-168.744507,0.00017122,2]
[351020859,1738296649489,-500.0,0.00017122,2]
[351020860,1738296649499,-1017.37448128,0.00017122,2]
[351020861,1738296649508,-500.0,0.00017122,2]
[351020862,1738296649518,-513.74288767,0.00017122,2]
[351020863,1738296649527,-505.55842029,0.00017122,2]
[351020864,1738296649537,-232.278265,0.00017122,2]
[351020865,1738296649551,-605.63008568,0.00017122,2]
[351020866,1738296649560,-232.278265,0.00017122,2]
[351020867,1738296649570,-508.38753987,0.00017122,2]
[351020868,1738296649580,-500.0,0.00017122,2]
[351020869,1738296649590,-509.70199133,0.00017122,2]
[351020870,1738296649599,-452.62768758,0.00017122,2]
[351020871,1738296649609,-373.12433395,0.00017122,2]
[351020872,1738296649619,-247.70325466,0.00017122,2]
[351020873,1738296649629,-505.27856966,0.00017122,2]
[351020874,1738296649639,-500.0,0.00017122,2]
[351020875,1738296649648,-518.95925627,0.00017122,2]
[351020876,1738296649658,-500.0,0.00017122,2]
[351020877,1738296649668,-502.34022885,0.00017122,2]
[351020878,1738296649678,-157.54158492,0.00017122,2]
[351020879,1738296649688,-500.0,0.00017122,2]
[351020880,1738296649698,-261.936049,0.00017122,2]
[351020881,1738296649708,-261.936049,0.00017122,2]
[351020882,1738296649718,-508.79149948,0.00017122,2]
[351020883,1738296649727,-151.0,0.00017122,2]
[351020884,1738296649736,-151.0,0.00017122,2]
[351020885,1738296649746,-245.73269063,0.00017122,2]
[351020886,1738296649755,-506.87772759,0.00017122,2]
[351020887,1738296649764,-509.05802149,0.00017122,2]
[351020888,1738296649774,-2466.711897,0.00017122,2]
[351020889,1738296649783,-603.06851229,0.00017122,2]
[351020890,1738296649793,-471.16438,0.00017122,2]
[351020891,1738296649802,-471.16437,0.00017122,2]
[351020892,1738296649812,-500.0,0.00017122,2]
[351020893,1738296649822,-500.0,0.00017122,2]
[351020894,1738296649832,-325.41801036,0.00017123,2]
[351020895,1738296649842,-506.71685715,0.00017123,2]
[351020896,1738296649852,-685.94,0.00017123,2]
[351020897,1738296649862,-500.0,0.00017123,2]
[351020898,1738296649872,-500.0,0.00017123,2]
[351020899,1738296649882,-506.02298102,0.00017173,2]
[351020900,1738296649892,-503.95672053,0.00017173,2]
[351020901,1738296649902,-500.0,0.00017255,2]
[351020902,1738296649911,-500.0,0.00017255,2]
[351020903,1738296649920,-500.0,0.00017255,2]
[351020904,1738296649931,-524.61157125,0.00017255,2]
[351020905,1738296649941,-500.0,0.00017255,2]
[351020906,1738296649951,-500.0,0.00017255,2]
[351020907,1738296649961,-677.33,0.00017255,2]
[351020908,1738296649971,-500.0,0.00017255,2]
[351020909,1738296649981,-500.0,0.00017255,2]
[351020910,1738296649990,-500.0,0.00017255,2]
[351020911,1738296650000,-200.2267951,0.00017255,2]
[351020912,1738296650010,-625.75,0.00017255,2]
[351020913,1738296650019,-500.0,0.00017255,2]
[351020914,1738296650029,-1484.8,0.00017255,2]
[351020915,1738296650038,-500.0,0.00017255,2]
[351020916,1738296650048,-500.0,0.00017255,2]
[351020917,1738296650057,-500.0,0.00017255,2]
[351020918,1738296650068,-500.0,0.00017255,2]
[351020919,1738296650078,-500.0,0.00017255,2]
[351020920,1738296650088,-859.31,0.00017255,2]
[351020921,1738296650097,-500.0,0.00017255,2]
[351020922,1738296650108,-500.0,0.00017255,2]
[351020923,1738296650119,-500.0,0.00017255,2]
[351020924,1738296650128,-770.71,0.00017255,2]
[351020925,1738296650138,-500.0,0.00017255,2]
[351020926,1738296650147,-500.0,0.00017255,2]
[351020927,1738296650156,-1518.04,0.00017255,2]
[351020928,1738296650166,-546.4,0.00017256,2]
[351020929,1738296650176,-500.0,0.00017256,2]
[351020930,1738296650186,-500.0,0.00017256,2]
[351020931,1738296650276,-500.0,0.00017256,2]
[351020932,1738296650286,-500.0,0.00017256,2]
[351020933,1738296650296,-500.0,0.00017256,2]
[351020934,1738296650305,-500.0,0.00017256,2]
[351020935,1738296650315,-500.0,0.00017256,2]
[351020936,1738296650325,-500.0,0.00017256,2]
[351020937,1738296650335,-494.0,0.00017256,2]
[351020938,1738296650345,-500.0,0.00017256,2]
[351020939,1738296650354,-500.0,0.00017256,2]
[351020940,1738296650365,-500.0,0.00017256,2]
[351020941,1738296650374,-500.0,0.00017256,2]
[351020942,1738296650385,-500.0,0.00017256,2]
[351020943,1738296650395,-500.0,0.00017256,2]
[351020944,1738296650404,-500.0,0.00017256,2]
[351020945,1738296650414,-500.0,0.00017256,2]
[351020946,1738296650424,-500.0,0.00017256,2]
[351020947,1738296650433,-500.0,0.00017256,2]
[351020948,1738296650443,-500.0,0.00017256,2]
[351020949,1738296650453,-500.0,0.00017256,2]
[351020950,1738296650462,-500.0,0.00017256,2]
[351020951,1738296650472,-500.0,0.00017256,2]
[351020952,1738296650482,-338.00542148,0.00017256,2]
[351020953,1738296650491,-500.0,0.00017256,2]
[351020954,1738296650501,-528.05960842,0.00017256,2]
[351020955,1738296650511,-502.91710946,0.00017256,2]
[351020956,1738296650520,-500.0,0.00017256,2]
[351020957,1738296650530,-500.0,0.00017256,2]
[351020958,1738296650540,-500.0,0.00017256,2]
[351020959,1738296650551,-500.0,0.00017256,2]
[351020960,1738296650561,-200.0,0.00017256,2]
[351020961,1738296650571,-500.0,0.00017256,2]